lending/lending_fUSD_20251111
["ID","MTS","AMOUNT","RATE_DAILY","PERIOD"]
[393594519,1762827045560,-500.0,0.00038708,7]
[393594520,1762827045569,-219.57,0.00038708,7]
[393594521,1762827045578,-512.69,0.00038708,7]
[393594522,1762827045588,-517.49269205,0.000388,120]
[393594523,1762827045601,-1250.53,0.0003881,2]
[393594524,1762827045610,-616.0,0.00038963,20]
[393594525,1762827045620,-300.0,0.00038966,2]
[393594526,1762827045630,-300.0,0.00038976,2]
[393594527,1762827045640,-300.0,0.00038983,2]
[393594528,1762827045649,-512.54526496,0.00039,120]
[393594529,1762827045658,-172.09582685,0.00039,2]
[393594530,1762827045667,-300.0,0.00039045,2]
[393594531,1762827045677,-300.0,0.00039065,2]
[393594532,1762827045687,-300.0,0.00039087,2]
[393594533,1762827045697,-609.53180621,0.00039088,11]
[393594534,1762827045706,-1200.0,0.000391,14]
[393594535,1762827045715,-300.0,0.00039146,2]
[393594536,1762827045724,-300.0,0.00039154,2]
[393594537,1762827045733,-300.0,0.00039156,2]
[393594538,1762827045742,-300.0,0.00039182,2]
[393594539,1762827045751,-300.0,0.00039197,2]
[393594540,1762827045761,-2000.0,0.00039199,2]
[393594541,1762827045770,-1700.0,0.000392,14]
[393594542,1762827045780,-300.0,0.00039232,2]
[393594543,1762827045790,-2500.0,0.00039238,14]
[393594544,1762827045799,-300.0,0.0003924,2]
[393594545,1762827045808,-300.0,0.00039243,2]
[393594546,1762827045817,-300.0,0.00039262,2]
[393594547,1762827045827,-300.0,0.00039286,2]
[393594548,1762827045836,-300.0,0.00039294,2]
[393594549,1762827045845,-300.0,0.00039298,2]
[393594550,1762827045856,-2100.0,0.000393,14]
[393594551,1762827045866,-300.0,0.00039306,2]
[393594552,1762827045875,-300.0,0.00039306,2]
[393594553,1762827045885,-300.0,0.00039312,2]
[393594554,1762827045894,-300.0,0.00039316,2]
[393594555,1762827045904,-300.0,0.00039327,2]
[393594556,1762827045913,-300.0,0.00039338,2]
[393594557,1762827045922,-300.0,0.00039344,2]
[393594558,1762827045931,-300.0,0.00039353,2]
[393594559,1762827045940,-300.0,0.0003936,2]
[393594560,1762827045949,-616.0,0.00039365,20]
[393594561,1762827045959,-14897.7370127,0.00039376,4]
[393594562,1762827045969,-300.0,0.00039386,2]
[393594563,1762827045978,-300.0,0.00039388,2]
[393594564,1762827045990,-300.0,0.00039391,2]
[393594565,1762827046001,-300.0,0.00039392,2]
[393594566,1762827046010,-400.0,0.000394,14]
[393594567,1762827046019,-300.0,0.00039405,2]
[393594568,1762827046029,-300.0,0.00039419,2]
[393594569,1762827046038,-300.0,0.00039419,2]
[393594570,1762827046048,-300.0,0.00039424,2]
[393594571,1762827046059,-300.0,0.00039435,2]
[393594572,1762827046069,-559.81,0.00039438,2]
[393594573,1762827046078,-150.0,0.00039438,2]
[393594574,1762827046087,-162.6,0.00039438,2]
[393594575,1762827046098,-186.71,0.00039438,2]
[393594576,1762827046107,-150.0,0.00039438,2]
[393594577,1762827046116,-150.0,0.00039438,2]
[393594578,1762827046126,-437.23950576,0.00039438,2]
[393594579,1762827046135,-300.0,0.0003944,2]
[393594580,1762827046144,-300.0,0.00039444,2]
[393594581,1762827046155,-300.0,0.00039444,2]
[393594582,1762827046166,-300.0,0.00039448,2]
[393594583,1762827046176,-300.0,0.00039454,2]
[393594584,1762827046185,-300.0,0.00039462,2]
[393594585,1762827046194,-300.0,0.00039462,2]
[393594586,1762827046204,-300.0,0.00039462,2]
[393594587,1762827046213,-300.0,0.00039463,2]
[393594588,1762827046223,-300.0,0.00039465,2]
[393594589,1762827046234,-300.0,0.00039469,2]
[393594590,1762827046243,-300.0,0.00039471,2]
[393594591,1762827046253,-300.0,0.00039478,2]
[393594592,1762827046263,-300.0,0.00039487,2]
[393594593,1762827046273,-300.0,0.00039499,2]
[393594594,1762827046283,-400.0,0.000395,14]
[393594595,1762827046294,-300.0,0.00039518,2]
[393594596,1762827046304,-300.0,0.00039521,2]
[393594597,1762827046313,-154.36,0.00039524,2]
[393594598,1762827046323,-300.0,0.0003953,2]
[393594599,1762827046334,-300.0,0.00039536,2]
[393594600,1762827046344,-300.0,0.00039542,2]
[393594601,1762827046355,-300.0,0.0003957,2]
[393594602,1762827046364,-300.0,0.00039573,2]
[393594603,1762827046374,-154.35238074,0.00039576,2]
[393594604,1762827046383,-29795.4740253,0.00039578,4]
[393594605,1762827046394,-300.0,0.00039579,2]
[393594606,1762827046403,-300.0,0.0003958,2]
[393594607,1762827046413,-609.53180621,0.00039587,11]
[393594608,1762827046422,-11491.31228929,0.00039587,2]
[393594609,1762827046431,-394.40616485,0.00039587,8]
[393594610,1762827046440,-168.54112068,0.00039588,120]
[393594611,1762827046450,-399.56236306,0.00039588,2]
[393594612,1762827046459,-11547.99268154,0.00039588,2]
[393594613,1762827046468,-378.02017989,0.00039588,2]
[393594614,1762827046478,-394.77697609,0.00039588,2]
[393594615,1762827046488,-49129.43908822,0.00039588,2]
[393594616,1762827046497,-354.03541132,0.00039588,2]
[393594617,1762827046509,-153.19916793,0.00039588,2]
[393594618,1762827046519,-2317.01646002,0.00039588,2]
[393594619,1762827046528,-157.79206075,0.00039588,15]
[393594620,1762827046538,-300.0,0.0003959,2]
[393594621,1762827046547,-300.0,0.00039595,2]
[393594622,1762827046557,-3268.59915556,0.00039597,4]
[393594623,1762827046666,-1135.183548,0.00039597,4]
[393594624,1762827046721,-268.78178006,0.00034945,8]
[393594625,1762827046731,-5031.21821994,0.00039597,4]
[393594626,1762827047029,-557.93397134,0.00039597,4]
[393594627,1762827047040,-500.0,0.00039597,4]
[393594628,1762827047051,-1364.89122177,0.00039597,4]
[393594649,1762827063138,200.0,0.0002255,120]
[393594650,1762827063299,249.11854353,0.00022,120]
[393594678,1762827930319,666.0,0.00030137,120]
[393594680,1762827949080,355.0,0.00030136,120]
[393594682,1762827979345,211.0,9.989e-05,2]
[393594683,1762827981499,4031.36777884,0.000295,120]
[393594691,1762828073286,792909.72336948,0.00015,2]
[393594693,1762828087466,7256.57829069,0.0001439,2]
[393594708,1762828119081,39480.04,0.00015,3]
[393594731,1762828231656,-250.0,0.00017,2]
[393594732,1762828231667,-161.61874155,0.00017,2]
[393594733,1762828231680,-13.7170629,0.00017,2]
[393594734,1762828231691,-501.94500585,0.00017,2]
[393594735,1762828231702,-55.74451164,0.0001769,2]
[393594736,1762828231715,-1452.62439007,0.0001769,2]
[393594737,1762828231728,-506.02,0.0001769,2]
[393594738,1762828231742,-301.0881855,0.0001769,2]
[393594739,1762828231752,-300.0,0.00017698,2]
[393594740,1762828231763,-300.0,0.00017698,2]
[393594741,1762828231774,-300.0,0.00017698,2]
[393594742,1762828231786,-901.3604516,0.00017698,2]
[393594743,1762828231799,-298.6395484,0.00017698,2]
[393594744,1762828231811,-1200.0,0.00017699,2]
[393594745,1762828231823,-9642.7122,0.000177,2]
[393594746,1762828231834,-504.16943469,0.00017773,2]
[393594747,1762828231846,-169.50422995,0.00017773,2]
[393594748,1762828231858,-501.63441399,0.00017773,2]
[393594749,1762828231868,-500.0,0.00017773,2]
[393594750,1762828231879,-380.64699654,0.0001779,2]
[393594751,1762828231889,-169.96,0.00017793,2]
[393594752,1762828231905,-400.0,0.000178,6]
[393594754,1762828231916,-800.0,0.000179,6]
[393594757,1762828231927,-609.89150417,0.00017973,2]
[393594759,1762828231937,-221.0,0.00017984,2]
[393594761,1762828231947,-151.0,0.00017989,2]
[393594763,1762828231957,-151.0,0.00017989,2]
[393594765,1762828231968,-151.0,0.00017989,2]
[393594767,1762828231978,-151.0,0.00017989,2]
[393594769,1762828231988,-151.0,0.00017989,2]
[393594771,1762828232000,-158.40489659,0.00017989,2]
[393594774,1762828232012,-151.0,0.00017989,2]
[393594776,1762828232022,-151.0,0.00017989,2]
[393594778,1762828232031,-151.0,0.00017989,2]
[393594780,1762828232041,-151.0,0.00017989,2]
[393594782,1762828232051,-151.0,0.00017989,2]
[393594784,1762828232062,-151.0,0.00017989,2]
[393594787,1762828232072,-151.0,0.00017989,2]
[393594789,1762828232082,-165.15560585,0.00017989,2]
[393594791,1762828232092,-217.42418737,0.0001799,2]
[393594793,1762828232102,-165.92033632,0.00017999,2]
[393594795,1762828232113,-157.86659891,0.00017999,2]
[393594797,1762828232122,-7138.56664112,0.00017999,2]
[393594799,1762828232132,-170.97377873,0.00017999,2]
[393594802,1762828232142,-189.68362378,0.00017999,2]
[393594804,1762828232151,-500.0,0.00017999,2]
[393594806,1762828232162,-298.83250321,0.00017999,2]
[393594808,1762828232171,-454371.68860231,0.00018,2]
[393594810,1762828232183,-16348.84456804,0.00018,2]
[393594813,1762828232196,-108081.94139566,0.00018,2]
[393594815,1762828232208,-922.41530248,0.00018,2]
[393594817,1762828232221,-3115.353793,0.00018,2]
[393594820,1762828232234,-964.24280452,0.00018,2]
[393594822,1762828232247,-1175.54681999,0.00018,2]
[393594825,1762828232264,-2408.37097631,0.00018,2]
[393594828,1762828232275,-949.15632863,0.00018,2]
[393594830,1762828232286,-373.2980954,0.00018,2]
[393594832,1762828232297,-4031.18679052,0.00018,2]
[393594834,1762828232309,-793.30310123,0.00018,2]
[393594837,1762828232326,-421.8679983,0.00018,2]
[393594858,1762828237508,-549.12162939,0.00017789,2]
[393594859,1762828237519,-549.12162939,0.00017789,2]
[393594860,1762828237529,-549.12162939,0.00017789,2]
[393594861,1762828237539,-549.12162939,0.00017789,2]
[393594862,1762828237549,-317.04577516,0.00017789,2]
[393594863,1762828237563,-232.07585423,0.00017789,2]
[393594864,1762828237573,-549.12162939,0.00017789,2]
[393594865,1762828237583,-366.94714062,0.00017789,2]
[393594866,1762828237617,-182.17448877,0.00017789,2]
[393594867,1762828237627,-549.12162939,0.00017789,2]
[393594868,1762828237636,-549.12162939,0.00017789,2]
[393594869,1762828237647,-549.12162939,0.00017789,2]
[393594870,1762828237657,-549.12162939,0.00017789,2]
[393594871,1762828237669,-549.12162939,0.00017789,2]
[393594872,1762828237679,-549.12162939,0.00017789,2]
[393594873,1762828237689,-549.12162939,0.00017789,2]
[393594874,1762828237698,-549.12162939,0.00017789,2]
[393594875,1762828237708,-549.12162939,0.00017789,2]
[393594876,1762828237719,-549.12162939,0.00017789,2]
[393594877,1762828237728,-549.12162939,0.00017789,2]
[393594878,1762828237738,-549.12162939,0.00017789,2]
[393594879,1762828237747,-549.12162939,0.00017789,2]
[393594880,1762828237757,-549.12162939,0.00017789,2]
[393594881,1762828237766,-549.12162939,0.00017789,2]
[393594882,1762828237776,-549.12162939,0.00017789,2]
[393594884,1762828237785,-549.12162939,0.00017789,2]
[393594886,1762828237795,-549.12162939,0.00017789,2]
[393594888,1762828237804,-549.12162939,0.00017789,2]
[393594890,1762828237813,-549.12162939,0.00017789,2]
[393594892,1762828237822,-549.12162939,0.00017789,2]
[393594894,1762828237832,-549.12162939,0.00017789,2]
[393594896,1762828237841,-549.12162939,0.00017789,2]
[393594898,1762828237851,-549.12162939,0.00017789,2]
[393594900,1762828237860,-549.12162939,0.00017789,2]
[393594902,1762828237869,-549.12162939,0.00017789,2]
[393594904,1762828237879,-549.12162939,0.00017789,2]
[393594906,1762828237888,-549.12162939,0.00017789,2]
[393594908,1762828237897,-549.12162939,0.00017789,2]
[393594910,1762828237907,-549.12162939,0.00017789,2]
[393594912,1762828237919,-549.12162939,0.00017789,2]
[393594914,1762828237928,-549.12162939,0.00017789,2]
[393594916,1762828237938,-549.12162939,0.00017789,2]
[393594918,1762828237947,-549.12162939,0.00017789,2]
[393594920,1762828237957,-549.12162939,0.00017789,2]
[393594922,1762828237966,-549.12162939,0.00017789,2]
[393594924,1762828237975,-549.12162939,0.00017789,2]
[393594926,1762828237984,-549.12162939,0.00017789,2]
[393594928,1762828237994,-549.12162939,0.00017789,2]
[393594930,1762828238003,-549.12162939,0.00017789,2]
[393594933,1762828238014,-549.12162939,0.00017789,2]
[393594935,1762828238024,-549.12162939,0.00017789,2]
[393594937,1762828238034,-549.12162939,0.00017789,2]
[393594939,1762828238044,-549.12162939,0.00017789,2]
[393594941,1762828238054,-114339.58916345,0.00018,2]
[393594943,1762828238068,-10005.69994428,0.00018,2]
[393594946,1762828238080,-287.33,0.00018,2]
[393594951,1762828239583,-1062.5527,0.00018,2]
[393594952,1762828239594,-252.505,0.00018,2]
[393594953,1762828239605,-5736.73580013,0.00018,2]
[393594954,1762828239743,-54496.96948187,0.00018,2]
[393594955,1762828239755,-7951.7505792,0.00018,2]
[393594956,1762828242750,-576.13387975,0.00018,2]
[393594957,1762828242762,-139835.74755015,0.00018,2]
[393594958,1762828242804,-1012.85979988,0.00018,2]
[393594959,1762828242815,-1130.40073013,0.00018,2]
[393594960,1762828242828,-2621.41414369,0.00018,2]
[393594961,1762828242839,-1338.89025357,0.00018,2]
[393594962,1762828242859,-461.412428,0.00018,2]
[393594964,1762828245809,-337.31294928,0.00018,2]
[393594965,1762828245821,-1075.09332639,0.00018,2]
[393594966,1762828245832,-993.0,0.00018,2]
[393594967,1762828245863,-1591.49311888,0.00018,2]
[393594968,1762828246126,-786.21233354,0.00018,2]
[393594969,1762828246138,-411.24207859,0.00018,2]
[393594970,1762828246149,-318.3903788,0.00018,2]
[393594971,1762828246160,-1508.3066688,0.00018,2]
[393595037,1762828565494,646.15,0.00013699,2]
[393595137,1762828732794,852.82,0.00030137,120]
[393595141,1762828791870,-411.15,0.000221,30]
[393595149,1762828839756,-150.0,0.00020414,7]
[393595165,1762829205347,-160.0,0.00016436,2]
[393595166,1762829205370,-1314.19,0.00016438,2]
[393595167,1762829205394,-250.0,0.00017,2]
[393595168,1762829205419,-200.0,0.00017077,2]
[393595169,1762829205441,-166.66,0.00017452,2]
[393595170,1762829205467,-472.89658991,0.00017491,2]
[393595171,1762829205490,-871.21176587,0.00017543,2]
[393595172,1762829205513,-300.0,0.0001759,2]
[393595173,1762829205537,-2447.0743,0.00017591,2]
[393595174,1762829205558,-1000.0,0.00017591,2]
[393595175,1762829205580,-239.2825,0.00017591,2]
[393595176,1762829205602,-1000.0,0.00017591,2]
[393595177,1762829205626,-729.8436,0.00017591,2]
[393595178,1762829205648,-500.0,0.00017591,2]
[393595179,1762829205673,-500.0,0.00017591,2]
[393595180,1762829205695,-500.0,0.00017591,2]
[393595181,1762829205718,-500.0,0.00017591,2]
[393595182,1762829205739,-500.0,0.00017591,2]
[393595183,1762829205762,-5606.84124422,0.000176,2]
[393595197,1762829431755,-486.236175,0.00016783,2]
[393595198,1762829431765,-150.0,0.00016868,2]
[393595199,1762829431775,-315.26439326,0.00017491,2]
[393595200,1762829431785,-315.26439326,0.00017543,2]
[393595201,1762829431794,-300.0,0.0001759,2]
[393595202,1762829431805,-1200.0,0.0001759,2]
[393595203,1762829431814,-1000.0,0.00017591,2]
[393595204,1762829431824,-1000.0,0.00017591,2]
[393595205,1762829431834,-2500.0,0.00017591,2]
[393595206,1762829431844,-372.4588,0.00017591,2]
[393595207,1762829431854,-6424.70997699,0.00017594,2]
[393595208,1762829431863,-315.26439326,0.00017594,2]
[393595209,1762829431873,-5514.90781076,0.00017594,2]
[393595210,1762829431883,-195.0,0.00017601,2]
[393595211,1762829431894,-300.0,0.00017601,2]
[393595212,1762829431904,-250.0,0.00017603,2]
[393595213,1762829431914,-170.97377872,0.0001762,2]
[393595214,1762829431923,-195.0,0.00017626,2]
[393595215,1762829431933,-300.0,0.00017626,2]
[393595216,1762829431942,-300.0,0.00017626,2]
[393595217,1762829431952,-300.0,0.00017626,2]
[393595218,1762829431961,-271.24630238,0.0001765,2]
[393595219,1762829431971,-1200.0,0.00017672,2]
[393595220,1762829431980,-219.34400574,0.00017672,2]
[393595221,1762829431990,-500.0,0.00017673,2]
[393595222,1762829432000,-500.0,0.00017673,2]
[393595223,1762829432009,-502.39942565,0.00017673,2]
[393595224,1762829432019,-189.90660482,0.00017673,2]
[393595225,1762829432029,-502.06342961,0.00017673,2]
[393595226,1762829432039,-507.16091307,0.00017673,2]
[393595227,1762829432049,-500.0,0.00017673,2]
[393595228,1762829432060,-504.65985304,0.00017673,2]
[393595229,1762829432069,-151.0,0.0001768,2]
[393595230,1762829432079,-202.72346532,0.0001768,2]
[393595232,1762829432088,-151.0,0.00017688,2]
[393595233,1762829432098,-151.0,0.00017688,2]
[393595234,1762829432108,-225.11237219,0.0001769,2]
[393595235,1762829432117,-181.14918307,0.0001769,2]
[393595236,1762829432126,-500.0,0.0001769,2]
[393595237,1762829432136,-474.09612552,0.0001769,2]
[393595238,1762829432147,-150.0,0.0001769,2]
[393595239,1762829432157,-187.96129423,0.0001769,2]
[393595240,1762829432167,-188.65,0.0001769,2]
[393595241,1762829432176,-500.0,0.0001769,2]
[393595242,1762829432186,-500.0,0.0001769,2]
[393595245,1762829432196,-507.90035275,0.0001769,2]
[393595248,1762829432206,-500.0,0.0001769,2]
[393595251,1762829432215,-500.0,0.0001769,2]
[393595253,1762829432225,-377.94170616,0.0001769,2]
[393595255,1762829432234,-120601.55856826,0.00017691,2]
[393595258,1762829432246,-1543.162,0.00017691,2]
[393595261,1762829432257,-65902.00251249,0.00017691,2]
[393595264,1762829432268,-950.06454241,0.00017691,2]
[393595269,1762829432283,-2325.971372,0.00017691,2]
[393595270,1762829432295,-4095.31450825,0.00017691,2]
[393595271,1762829432310,-500.0,0.00017683,2]
[393595272,1762829432319,-36.8240265,0.00017691,2]
[393595273,1762829432330,-1707.54897056,0.00017691,2]
[393595274,1762829437687,-500.0,0.00017683,2]
[393595275,1762829437697,-500.0,0.00017683,2]
[393595276,1762829437707,-500.0,0.00017683,2]
[393595277,1762829437717,-500.0,0.00017683,2]
[393595278,1762829437726,-500.0,0.00017683,2]
[393595279,1762829437740,-500.0,0.00017683,2]
[393595280,1762829437750,-500.0,0.00017683,2]
[393595281,1762829437759,-448.53693535,0.00017683,2]
[393595282,1762829437771,-51.46306465,0.00017683,2]
[393595283,1762829437781,-500.0,0.00017683,2]
[393595284,1762829437790,-500.0,0.00017683,2]
[393595285,1762829437799,-500.0,0.00017683,2]
[393595286,1762829437812,-500.0,0.00017683,2]
[393595287,1762829437822,-500.0,0.00017683,2]
[393595288,1762829437831,-500.0,0.00017683,2]
[393595289,1762829437841,-500.0,0.00017683,2]
[393595290,1762829437850,-500.0,0.00017683,2]
[393595291,1762829437859,-500.0,0.00017683,2]
[393595292,1762829437869,-500.0,0.00017683,2]
[393595293,1762829437878,-500.0,0.00017683,2]
[393595294,1762829437887,-500.0,0.00017683,2]
[393595295,1762829437898,-500.0,0.00017683,2]
[393595296,1762829437907,-226.15141814,0.00017683,2]
[393595297,1762829437918,-273.84858186,0.00017683,2]
[393595298,1762829437928,-500.0,0.00017683,2]
[393595299,1762829437937,-500.0,0.00017683,2]
[393595300,1762829437946,-500.0,0.00017683,2]
[393595301,1762829437955,-500.0,0.00017683,2]
[393595302,1762829437965,-500.0,0.00017683,2]
[393595303,1762829437975,-500.0,0.00017683,2]
[393595304,1762829437985,-500.0,0.00017683,2]
[393595305,1762829437994,-500.0,0.00017683,2]
[393595306,1762829438004,-500.0,0.00017683,2]
[393595307,1762829438014,-500.0,0.00017683,2]
[393595308,1762829438024,-500.0,0.00017683,2]
[393595309,1762829438034,-216.26385627,0.00017683,2]
[393595310,1762829438044,-500.0,0.00017683,2]
[393595311,1762829438054,-500.0,0.00017683,2]
[393595312,1762829438063,-96640.96623066,0.00017691,2]
[393595313,1762829438075,-2405.44675317,0.00017691,2]
[393595314,1762829438087,-15835.92180208,0.00017691,2]
[393595315,1762829438098,-896.40182499,0.00017691,2]
[393595317,1762829439691,-1607.49186535,0.00017691,2]
[393595318,1762829439747,-1088.94000001,0.00017691,2]
[393595319,1762829439802,-12462.11484198,0.00017691,2]
[393595320,1762829439962,-31888.09375487,0.00017691,2]
[393595321,1762829440016,-379.16149985,0.00017691,2]
[393595322,1762829440027,-1161.783876,0.00017691,2]
[393595341,1762829442757,-305.43973936,0.00017691,2]
[393595343,1762829442867,-4265.91282275,0.00017691,2]
[393595344,1762829442879,-1359.27001,0.00017691,2]
[393595346,1762829443124,-52540.60847846,0.00017691,2]
[393595347,1762829443137,-165.92033631,0.00017694,2]
[393595348,1762829443147,-300.0,0.000179,6]
[393595349,1762829443159,-157.8665989,0.000179,2]
[393595350,1762829443168,-188.65,0.00017964,2]
[393595351,1762829443179,-503.22174975,0.00017973,2]
[393595352,1762829443188,-500.97586857,0.00017973,2]
[393595353,1762829443199,-505.83127506,0.00017973,2]
[393595354,1762829443208,-501.0162978,0.00017973,2]
[393595355,1762829443218,-500.59589849,0.00017973,2]
[393595356,1762829443227,-363.25928453,0.00017973,2]
[393595357,1762829443237,-501.42722306,0.00017973,2]
[393595358,1762829443247,-500.21512962,0.00017973,2]
[393595359,1762829443257,-504.91660051,0.00017973,2]
[393595360,1762829443266,-502.48155544,0.00017973,2]
[393595361,1762829443275,-502.33349575,0.00017973,2]
[393595362,1762829443285,-501.16361588,0.00017973,2]
[393595363,1762829443294,-505.49083869,0.00017973,2]
[393595364,1762829443303,-503.66064638,0.00017973,2]
[393595366,1762829443312,-505.14005012,0.00017973,2]
[393595367,1762829443321,-649.3390705,0.00017973,2]
[393595368,1762829443331,-151.0,0.00017988,2]
[393595369,1762829443340,-524.08523061,0.0001799,2]
[393595370,1762829443351,-21562.4942405,0.00017991,2]
[393595371,1762829443360,-123583.27256002,0.00017991,2]
[393595372,1762829443374,-8557.57410018,0.00017991,2]
[393595373,1762829443383,-25606.0778623,0.00017991,2]
[393595374,1762829443392,-151.0,0.00017997,2]
[393595375,1762829443404,-2647.7134057,0.00017998,2]
[393595376,1762829443414,-500.0,0.00017999,2]
[393595377,1762829443423,-500.0,0.00017999,2]
[393595378,1762829443432,-500.0,0.00017999,2]
[393595379,1762829443441,-505.84882031,0.00017999,2]
[393595380,1762829443451,-213.75445057,0.00017999,2]
[393595381,1762829443460,-500.0,0.00017999,2]
[393595382,1762829443470,-507.36092978,0.00017999,2]
[393595383,1762829443479,-500.0,0.00017999,2]
[393595384,1762829443490,-504.38771238,0.00017999,2]
[393595385,1762829443499,-500.0,0.00017999,2]
[393595386,1762829443508,-500.0,0.00017999,2]
[393595387,1762829443517,-500.0,0.00017999,2]
[393595388,1762829443527,-519.03161135,0.00017999,2]
[393595389,1762829443536,-500.0,0.00017999,2]
[393595390,1762829443545,-505.81429208,0.00017999,2]
[393595391,1762829443555,-609.11867736,0.00017999,2]
[393595392,1762829443565,-500.0,0.00017999,2]
[393595393,1762829443575,-503.45794758,0.00017999,2]
[393595394,1762829443584,-294638.58235713,0.00018,2]
[393595395,1762829443594,-151.0,0.00018,2]
[393595396,1762829443603,-1388.95023,0.00018,2]
[393595397,1762829443613,-151.0,0.00018,2]
[393595398,1762829443622,-151.0,0.00018,2]
[393595399,1762829443631,-205.256077,0.00018,2]
[393595400,1762829443641,-151.0,0.00018,2]
[393595401,1762829443650,-187.304428,0.00018,2]
[393595402,1762829443662,-166.66,0.00018028,2]
[393595403,1762829443672,-1000.0,0.00018072,2]
[393595404,1762829443682,-154.5,0.00018082,2]
[393595405,1762829443691,-508.68685253,0.00018221,2]
[393595406,1762829443700,-188.67,0.00018238,2]
[393595407,1762829443709,-871.21176587,0.00018304,2]
[393595408,1762829443718,-999.0,0.00018399,3]
[393595409,1762829443727,-166.66,0.00018604,2]
[393595410,1762829443742,-282.55682973,0.00019,2]
[393595411,1762829443752,-5122.98177982,0.00019,2]
[393595412,1762829443761,-7519.2397553,0.00019,2]
[393595413,1762829443770,-212.90160791,0.00019,2]
[393595414,1762829443781,-300.0,0.00019,2]
[393595415,1762829443790,-200.0,0.00019178,2]
[393595416,1762829443798,-166.66,0.0001918,2]
[393595417,1762829443807,-250.0,0.0001936,2]
[393595418,1762829443817,-195.0,0.0001936,2]
[393595419,1762829443827,-300.0,0.0001936,2]
[393595420,1762829443836,-300.0,0.0001936,2]
[393595421,1762829443845,-154.5,0.00019438,2]
[393595422,1762829443854,-166.66,0.00019757,2]
[393595423,1762829443863,-302.9555958,0.00019863,2]
[393595424,1762829443872,-700.0,0.000199,7]
[393595425,1762829443881,-2647.7134057,0.00019902,2]
[393595426,1762829443891,-1388.95023,0.0002,2]
[393595427,1762829443899,-6424.70997696,0.00020038,2]
[393595428,1762829443911,-5514.90781072,0.00020038,2]
[393595429,1762829443921,-646.15,0.00020187,2]
[393595430,1762829443929,-501.33611635,0.00020203,2]
[393595431,1762829443939,-21562.4942405,0.00020247,2]
[393595432,1762829443948,-1000.0,0.00020331,2]
[393595433,1762829443957,-166.66,0.00020333,2]
[393595434,1762829443967,-25606.0778623,0.00020397,2]
[393595435,1762829443975,-158.38619199,0.00020411,2]
[393595436,1762829443985,-152.885462,0.00020414,7]
[393595437,1762829443994,-151.0,0.00020414,7]
[393595438,1762829444003,-151.0,0.00020414,7]
[393595439,1762829444012,-180.489996,0.00020414,7]
[393595440,1762829444020,-118907.85994358,0.00020414,2]
[393595444,1762829445835,-269.32499987,0.00020414,2]
[393595445,1762829445891,-1364.89122177,0.00020414,2]
[393595446,1762829445903,-257.42499227,0.00020414,2]
[393595447,1762829445946,-11341.34550271,0.00020414,2]
[393595448,1762829445956,-154.5,0.00020795,2]
[393595449,1762829445965,-6353.55687192,0.00021,2]
[393595450,1762829445975,-350.0,0.00021,2]
[393595451,1762829445984,-217.42418737,0.0002149,2]
[393595452,1762829445993,-20358.90798477,0.000215,2]
[393595453,1762829446003,-220.13874271,0.000215,2]
[393595454,1762829446012,-2647.7134057,0.00021807,2]
[393595455,1762829446021,-5000.0,0.00021918,2]
[393595456,1762829446030,-151.0,0.00021918,7]
[393595457,1762829446039,-170.806207,0.00021918,7]
[393595458,1762829446048,-168.768552,0.00021918,7]
[393595459,1762829446057,-295.585642,0.00021918,7]
[393595460,1762829446067,-151.0,0.00021918,7]
[393595461,1762829446076,-151.0,0.00021918,7]
[393595462,1762829446085,-151.0,0.00021918,7]